[Event "Early-Titled-Tuesday-Blitz-September-26-2023"]
[Site "Chess.com"]
[Date "2023.09.26"]
[Round "7"]
[White "Fore_Man"]
[Black "Rosh1610"]
[Result "0-1"]
[WhiteElo "2288"]
[BlackElo "2468"]
[TimeControl "180+1"]
[EndTime "9:20:57 PDT"]
[Termination "Rosh1610 won by resignation"]

1. Nf3 {[%clk 0:01:39.6]} 1... d5 {[%clk 0:02:58.5]} 2. c4 {[%clk 0:01:40]} 2...
c6 {[%clk 0:02:44.2]} 3. d4 {[%clk 0:01:38.8]} 3... Nf6 {[%clk 0:02:42.8]} 4. e3
{[%clk 0:01:38.8]} 4... e6 {[%clk 0:02:42.1]} 5. Nc3 {[%clk 0:01:37.8]} 5... Be7
{[%clk 0:02:42.7]} 6. Be2 {[%clk 0:01:31.8]} 6... O-O {[%clk 0:02:43.1]} 7. O-O
{[%clk 0:01:32]} 7... dxc4 {[%clk 0:02:41.4]} 8. Bxc4 {[%clk 0:01:32.2]} 8... b5
{[%clk 0:02:42.1]} 9. Bb3 {[%clk 0:01:32.1]} 9... Bb7 {[%clk 0:02:42.6]} 10. a4
{[%clk 0:01:27.5]} 10... b4 {[%clk 0:02:42.2]} 11. Ne2 {[%clk 0:01:27.5]} 11...
c5 {[%clk 0:02:40.9]} 12. dxc5 {[%clk 0:01:25.6]} 12... Nc6 {[%clk 0:02:39.4]}
13. Ned4 {[%clk 0:01:22.7]} 13... Bxc5 {[%clk 0:02:38.7]} 14. Nxc6 {[%clk
0:01:20.1]} 14... Bxc6 {[%clk 0:02:39.6]} 15. Qc2 {[%clk 0:01:19.5]} 15... Rc8
{[%clk 0:02:32.5]} 16. Qxc5 {[%clk 0:01:17.1]} 16... Bxf3 {[%clk 0:02:32]} 17.
Qxb4 {[%clk 0:01:17.7]} 17... Ba8 {[%clk 0:02:22.8]} 18. Rd1 {[%clk 0:01:15.4]}
18... Qc7 {[%clk 0:02:17.6]} 19. Bd2 {[%clk 0:01:09.4]} 19... Rb8 {[%clk
0:02:15.5]} 20. Qa3 {[%clk 0:01:08.2]} 20... Qb7 {[%clk 0:02:15.2]} 21. f3
{[%clk 0:01:02.4]} 21... Qxb3 {[%clk 0:02:14.5]} 22. Qxb3 {[%clk 0:01:00.1]}
22... Rxb3 {[%clk 0:02:15.4]} 23. Bc3 {[%clk 0:01:00.7]} 23... Nd5 {[%clk
0:02:13.6]} 24. Bd4 {[%clk 0:01:00.8]} 24... Nxe3 {[%clk 0:02:13.1]} 25. Rdc1
{[%clk 0:00:56.1]} 25... Nf5 {[%clk 0:02:09]} 26. Bxa7 {[%clk 0:00:55.3]} 26...
Rxb2 {[%clk 0:02:06.7]} 27. Bc5 {[%clk 0:00:55.8]} 27... Rd8 {[%clk 0:02:02.4]}
28. Rd1 {[%clk 0:00:54.8]} 28... Rc8 {[%clk 0:01:58.8]} 29. a5 {[%clk
0:00:51.6]} 29... h6 {[%clk 0:01:57.5]} 30. Bb6 {[%clk 0:00:51]} 30... Nh4
{[%clk 0:01:53.2]} 31. Bf2 {[%clk 0:00:48.6]} 31... Ng6 {[%clk 0:01:49]} 32.
Rac1 {[%clk 0:00:46.7]} 32... Rcb8 {[%clk 0:01:41.1]} 33. Bb6 {[%clk 0:00:45.7]}
33... Nf4 {[%clk 0:01:35]} 34. Bc7 {[%clk 0:00:32.5]} 34... Ne2+ {[%clk
0:01:34.2]} 35. Kf1 {[%clk 0:00:32.3]} 35... Nxc1 {[%clk 0:01:14.3]} 36. Bxb8
{[%clk 0:00:32]} 36... Rxb8 {[%clk 0:01:15.2]} 37. Rxc1 {[%clk 0:00:32.3]} 37...
Bd5 {[%clk 0:01:13.5]} 38. Kf2 {[%clk 0:00:26.7]} 38... Ra8 {[%clk 0:01:14.4]}
39. Ra1 {[%clk 0:00:26]} 39... Ra6 {[%clk 0:01:14.4]} 40. Ke3 {[%clk 0:00:26.6]}
40... Kf8 {[%clk 0:01:14.1]} 41. Kd4 {[%clk 0:00:27.2]} 41... Ke7 {[%clk
0:01:14.5]} 42. Kc5 {[%clk 0:00:27.8]} 42... Kf6 {[%clk 0:01:12.1]} 43. Kb5
{[%clk 0:00:27.9]} 43... Ra8 {[%clk 0:01:12.6]} 44. a6 {[%clk 0:00:28.4]} 44...
Ke5 {[%clk 0:01:12.4]} 45. a7 {[%clk 0:00:28.3]} 45... Kf4 {[%clk 0:01:11.3]}
46. Ra3 {[%clk 0:00:25.9]} 46... h5 {[%clk 0:01:01.2]} 47. g3+ {[%clk
0:00:25.4]} 47... Ke5 {[%clk 0:01:01.1]} 48. Kb6 {[%clk 0:00:23.5]} 48... Kd4
{[%clk 0:01:00.7]} 49. Kc7 {[%clk 0:00:20.1]} 49... Ke5 {[%clk 0:00:53.2]} 50.
Kd7 {[%clk 0:00:20.3]} 50... f5 {[%clk 0:00:48.1]} 51. Ke7 {[%clk 0:00:18.6]}
51... g5 {[%clk 0:00:47.3]} 52. Ra5 {[%clk 0:00:17.3]} 52... Kd4 {[%clk
0:00:23.4]} 53. Ra4+ {[%clk 0:00:17.2]} 53... Kc5 {[%clk 0:00:22.8]} 54. Ra3
{[%clk 0:00:16.8]} 54... Kb4 {[%clk 0:00:22]} 55. Ra1 {[%clk 0:00:14.1]} 55...
Kb5 {[%clk 0:00:20.8]} 56. Kf6 {[%clk 0:00:14.3]} 56... Kb6 {[%clk 0:00:21]} 57.
Kxg5 {[%clk 0:00:14.3]} 57... Rxa7 {[%clk 0:00:21.2]} 58. Rb1+ {[%clk
0:00:13.5]} 58... Kc6 {[%clk 0:00:21.1]} 59. Kxh5 {[%clk 0:00:13.9]} 59... Bxf3+
{[%clk 0:00:20.8]} 60. Kg5 {[%clk 0:00:14.6]} 60... Be4 {[%clk 0:00:21.4]} 61.
Rc1+ {[%clk 0:00:14.5]} 61... Kd5 {[%clk 0:00:21.7]} 62. h4 {[%clk 0:00:15.1]}
62... Ke5 {[%clk 0:00:21.2]} 63. h5 {[%clk 0:00:12.5]} 63... Rg7+ {[%clk
0:00:19.9]} 64. Kh4 {[%clk 0:00:13.2]} 64... Rg4+ {[%clk 0:00:19.9]} 65. Kh3
{[%clk 0:00:13.7]} 65... Kf6 {[%clk 0:00:20.6]} 66. Re1 {[%clk 0:00:13.3]} 66...
Kg5 {[%clk 0:00:21.1]} 67. Ra1 {[%clk 0:00:12.3]} 67... Kxh5 {[%clk 0:00:21.3]}
68. Ra7 {[%clk 0:00:12.7]} 68... Bd5 {[%clk 0:00:21.2]} 69. Rh7+ {[%clk
0:00:12.4]} 69... Kg6 {[%clk 0:00:21.6]} 70. Re7 {[%clk 0:00:12.9]} 70... Rg5
{[%clk 0:00:21.8]} 71. Re8 {[%clk 0:00:12.6]} 71... Kf6 {[%clk 0:00:22.7]} 72.
Rf8+ {[%clk 0:00:12.5]} 72... Ke7 {[%clk 0:00:22.8]} 73. Rb8 {[%clk 0:00:13.2]}
73... Rg7 {[%clk 0:00:23.2]} 74. Rc8 {[%clk 0:00:12.4]} 74... Kf6 {[%clk
0:00:23.5]} 75. Rf8+ {[%clk 0:00:12.2]} 75... Rf7 {[%clk 0:00:23.4]} 76. Rh8
{[%clk 0:00:13]} 76... Be4 {[%clk 0:00:23.8]} 77. Re8 {[%clk 0:00:12.7]} 77...
e5 {[%clk 0:00:23.7]} 78. Rb8 {[%clk 0:00:12.2]} 78... Re7 {[%clk 0:00:24.4]}
79. Rb6+ {[%clk 0:00:12.4]} 79... Re6 {[%clk 0:00:24.5]} 80. Rb8 {[%clk
0:00:12.9]} 80... Bf3 {[%clk 0:00:24.6]} 81. Rh8 {[%clk 0:00:10.1]} 81... Bg4+
{[%clk 0:00:24.1]} 82. Kg2 {[%clk 0:00:09.9]} 82... e4 {[%clk 0:00:25]} 83. Rh6+
{[%clk 0:00:09.8]} 83... Ke5 {[%clk 0:00:25.4]} 84. Rh8 {[%clk 0:00:10.2]} 84...
Kd4 {[%clk 0:00:25.2]} 85. Re8 {[%clk 0:00:11]} 85... Rxe8 {[%clk 0:00:24.6]}
0-1

[Event "Early-Titled-Tuesday-Blitz-September-26-2023"]
[Site "Chess.com"]
[Date "2023.09.26"]
[Round "7"]
[White "djokovic74"]
[Black "Agibileg"]
[Result "1/2-1/2"]
[WhiteElo "2694"]
[BlackElo "2668"]
[TimeControl "180+1"]
[EndTime "9:21:03 PDT"]
[Termination "Game drawn - insufficient material"]

1. e4 {[%clk 0:03:00.9]} 1... e5 {[%clk 0:02:59.7]} 2. Nf3 {[%clk 0:03:01.1]}
2... Nc6 {[%clk 0:02:59.9]} 3. Bb5 {[%clk 0:03:01.7]} 3... a6 {[%clk 0:02:58]}
4. Ba4 {[%clk 0:03:02.1]} 4... Nf6 {[%clk 0:02:57.6]} 5. O-O {[%clk 0:03:02.5]}
5... Be7 {[%clk 0:02:57.5]} 6. d3 {[%clk 0:03:02.1]} 6... b5 {[%clk 0:02:55.7]}
7. Bb3 {[%clk 0:03:02.5]} 7... O-O {[%clk 0:02:54.4]} 8. Nc3 {[%clk 0:03:02.2]}
8... d6 {[%clk 0:02:50.2]} 9. a3 {[%clk 0:03:02.7]} 9... Bg4 {[%clk 0:02:47.3]}
10. Be3 {[%clk 0:03:02.9]} 10... Nd4 {[%clk 0:02:45.2]} 11. Bxd4 {[%clk
0:03:03.2]} 11... exd4 {[%clk 0:02:44.9]} 12. Nd5 {[%clk 0:03:03.7]} 12... c6
{[%clk 0:02:35.1]} 13. h3 {[%clk 0:02:49.2]} 13... Bxf3 {[%clk 0:01:48.9]} 14.
Nxf6+ {[%clk 0:02:47.6]} 14... Bxf6 {[%clk 0:01:49.8]} 15. Qxf3 {[%clk
0:02:48.4]} 15... Kh8 {[%clk 0:01:44.7]} 16. g3 {[%clk 0:02:46.9]} 16... Be5
{[%clk 0:01:37.1]} 17. Qg2 {[%clk 0:02:45.5]} 17... g5 {[%clk 0:01:34.1]} 18.
Kh1 {[%clk 0:02:38.5]} 18... f5 {[%clk 0:01:32.9]} 19. exf5 {[%clk 0:02:28.8]}
19... d5 {[%clk 0:01:32.8]} 20. Rae1 {[%clk 0:02:22]} 20... Qd6 {[%clk
0:01:31.5]} 21. f4 {[%clk 0:02:15.4]} 21... gxf4 {[%clk 0:01:21.8]} 22. gxf4
{[%clk 0:02:15.8]} 22... Bxf4 {[%clk 0:01:20.6]} 23. Re6 {[%clk 0:02:16.5]}
23... Qc7 {[%clk 0:01:20.4]} 24. Qg4 {[%clk 0:01:33.6]} 24... Be3 {[%clk
0:01:10.2]} 25. f6 {[%clk 0:01:20.4]} 25... Rg8 {[%clk 0:01:10.1]} 26. Qf5
{[%clk 0:00:53.2]} 26... Qg3 {[%clk 0:01:08.9]} 27. Qf3 {[%clk 0:00:53.3]} 27...
Qxf3+ {[%clk 0:00:58.8]} 28. Rxf3 {[%clk 0:00:53.3]} 28... Rg1+ {[%clk
0:00:59.7]} 29. Kh2 {[%clk 0:00:51.3]} 29... Rag8 {[%clk 0:01:00.6]} 30. h4
{[%clk 0:00:38.1]} 30... R8g2+ {[%clk 0:00:53.4]} 31. Kh3 {[%clk 0:00:38.4]}
31... Rg8 {[%clk 0:00:53.4]} 32. Kh2 {[%clk 0:00:29.8]} 32... R1g2+ {[%clk
0:00:53.4]} 33. Kh3 {[%clk 0:00:25.8]} 33... Bf4 {[%clk 0:00:53.5]} 34. Re2
{[%clk 0:00:17.9]} 34... R8g3+ {[%clk 0:00:47.4]} 35. Rxg3 {[%clk 0:00:16.8]}
35... Rxg3+ {[%clk 0:00:48.3]} 36. Kh2 {[%clk 0:00:17.1]} 36... Re3+ {[%clk
0:00:49.2]} 37. Kg2 {[%clk 0:00:14.9]} 37... Rxe2+ {[%clk 0:00:49.8]} 38. Kf3
{[%clk 0:00:15.6]} 38... Re6 {[%clk 0:00:46]} 39. Kxf4 {[%clk 0:00:14.6]} 39...
Rxf6+ {[%clk 0:00:46.3]} 40. Ke5 {[%clk 0:00:15.4]} 40... Rh6 {[%clk 0:00:45.2]}
41. Kxd4 {[%clk 0:00:15.7]} 41... Rxh4+ {[%clk 0:00:45.4]} 42. Kc5 {[%clk
0:00:16.5]} 42... Rh6 {[%clk 0:00:45.8]} 43. a4 {[%clk 0:00:15]} 43... Rf6
{[%clk 0:00:43.1]} 44. c4 {[%clk 0:00:09.3]} 44... dxc4 {[%clk 0:00:39.3]} 45.
dxc4 {[%clk 0:00:09.7]} 45... h5 {[%clk 0:00:36.6]} 46. cxb5 {[%clk 0:00:08.2]}
46... axb5 {[%clk 0:00:36]} 47. a5 {[%clk 0:00:05.3]} 47... h4 {[%clk
0:00:35.3]} 48. a6 {[%clk 0:00:05.7]} 48... h3 {[%clk 0:00:25]} 49. a7 {[%clk
0:00:05.8]} 49... Rf8 {[%clk 0:00:24.7]} 50. Kxc6 {[%clk 0:00:06.2]} 50... Kg7
{[%clk 0:00:15.3]} 51. Kb7 {[%clk 0:00:04.6]} 51... Kf6 {[%clk 0:00:14.3]} 52.
a8=Q {[%clk 0:00:04.1]} 52... Rxa8 {[%clk 0:00:14]} 53. Kxa8 {[%clk 0:00:05]}
53... Ke5 {[%clk 0:00:14.9]} 54. Bd1 {[%clk 0:00:04.8]} 54... Ke4 {[%clk
0:00:13]} 55. Be2 {[%clk 0:00:02.1]} 55... b4 {[%clk 0:00:10.7]} 56. Ba6 {[%clk
0:00:01.4]} 56... h2 {[%clk 0:00:10.5]} 57. Bb7+ {[%clk 0:00:01.8]} 57... Kd3
{[%clk 0:00:11.2]} 58. Ka7 {[%clk 0:00:02.6]} 58... Kc2 {[%clk 0:00:11.5]} 59.
Kb6 {[%clk 0:00:02.7]} 59... Kxb2 {[%clk 0:00:11.9]} 60. Kb5 {[%clk 0:00:03.5]}
60... b3 {[%clk 0:00:12.3]} 61. Kb4 {[%clk 0:00:04.2]} 61... Ka2 {[%clk
0:00:08.4]} 62. Bd5 {[%clk 0:00:04.4]} 62... Kb2 {[%clk 0:00:08.8]} 63. Bh1
{[%clk 0:00:02.3]} 63... Kc2 {[%clk 0:00:08.6]} 64. Be4+ {[%clk 0:00:02.5]}
64... Kb2 {[%clk 0:00:08.3]} 65. Bh1 {[%clk 0:00:02.7]} 65... Ka2 {[%clk
0:00:04.5]} 66. Bd5 {[%clk 0:00:02.6]} 66... h1=Q {[%clk 0:00:04.5]} 67. Bxh1
{[%clk 0:00:01.8]} 67... b2 {[%clk 0:00:05.4]} 68. Bd5+ {[%clk 0:00:02.2]} 68...
Ka1 {[%clk 0:00:04.4]} 69. Be4 {[%clk 0:00:03]} 69... b1=Q+ {[%clk 0:00:04.2]}
70. Bxb1 {[%clk 0:00:03.8]} 1/2-1/2

[Event "Early-Titled-Tuesday-Blitz-September-26-2023"]
[Site "Chess.com"]
[Date "2023.09.26"]
[Round "7"]
[White "vovachesss"]
[Black "Saif_Malek04"]
[Result "1-0"]
[WhiteElo "2747"]
[BlackElo "2609"]
[TimeControl "180+1"]
[EndTime "9:21:16 PDT"]
[Termination "vovachesss won by checkmate"]

1. e4 {[%clk 0:02:53.7]} 1... e5 {[%clk 0:02:59.5]} 2. f4 {[%clk 0:02:52.8]}
2... d5 {[%clk 0:02:57.1]} 3. exd5 {[%clk 0:02:51.5]} 3... e4 {[%clk 0:02:55.9]}
4. d3 {[%clk 0:02:49]} 4... Nf6 {[%clk 0:02:45.8]} 5. dxe4 {[%clk 0:01:59.9]}
5... Nxe4 {[%clk 0:02:45]} 6. Qe2 {[%clk 0:01:58.6]} 6... Qxd5 {[%clk
0:02:44.6]} 7. Nd2 {[%clk 0:01:41.6]} 7... f5 {[%clk 0:02:43.7]} 8. Nxe4 {[%clk
0:01:40.5]} 8... fxe4 {[%clk 0:02:40.3]} 9. Qb5+ {[%clk 0:01:36.5]} 9... c6
{[%clk 0:02:26.1]} 10. Qxd5 {[%clk 0:01:22.7]} 10... cxd5 {[%clk 0:02:27]} 11.
Be3 {[%clk 0:01:23.6]} 11... Nc6 {[%clk 0:02:18.6]} 12. O-O-O {[%clk 0:01:23.8]}
12... Be6 {[%clk 0:02:18.5]} 13. Ne2 {[%clk 0:01:07.2]} 13... O-O-O {[%clk
0:02:09.8]} 14. Nd4 {[%clk 0:01:06.8]} 14... Bc5 {[%clk 0:01:37]} 15. Bb5 {[%clk
0:00:38.2]} 15... Bxd4 {[%clk 0:01:26.7]} 16. Bxd4 {[%clk 0:00:36.7]} 16... a6
{[%clk 0:01:07.4]} 17. Be2 {[%clk 0:00:20.1]} 17... Rhf8 {[%clk 0:01:03.9]} 18.
Rhf1 {[%clk 0:00:14.4]} 18... Rf7 {[%clk 0:01:01.1]} 19. c3 {[%clk 0:00:09.7]}
19... Rdf8 {[%clk 0:01:00.1]} 20. Be3 {[%clk 0:00:09.7]} 20... g6 {[%clk
0:00:58]} 21. g3 {[%clk 0:00:09.2]} 21... h5 {[%clk 0:00:58]} 22. Rd2 {[%clk
0:00:06]} 22... Ne7 {[%clk 0:00:58.4]} 23. Bd1 {[%clk 0:00:03.9]} 23... Nf5
{[%clk 0:00:58.5]} 24. Re2 {[%clk 0:00:04.3]} 24... Bd7 {[%clk 0:00:58.3]} 25.
Rfe1 {[%clk 0:00:03.6]} 25... Bb5 {[%clk 0:00:56.7]} 26. Rd2 {[%clk 0:00:04.1]}
26... Rd8 {[%clk 0:00:53.7]} 27. Bb3 {[%clk 0:00:04.6]} 27... Rfd7 {[%clk
0:00:50.3]} 28. Bd4 {[%clk 0:00:04.9]} 28... Bd3 {[%clk 0:00:34.6]} 29. Bf6
{[%clk 0:00:04.2]} 29... Rf8 {[%clk 0:00:33.7]} 30. Be5 {[%clk 0:00:05]} 30...
b5 {[%clk 0:00:33.6]} 31. a3 {[%clk 0:00:03.5]} 31... Re8 {[%clk 0:00:30.5]} 32.
Bc2 {[%clk 0:00:03.7]} 32... Bxc2 {[%clk 0:00:29.9]} 33. Kxc2 {[%clk 0:00:04.2]}
33... g5 {[%clk 0:00:24.8]} 34. Ree2 {[%clk 0:00:03.3]} 34... gxf4 {[%clk
0:00:22.3]} 35. gxf4 {[%clk 0:00:04.2]} 35... Rg8 {[%clk 0:00:22.6]} 36. Rd1
{[%clk 0:00:04.4]} 36... h4 {[%clk 0:00:21.1]} 37. Kb3 {[%clk 0:00:04.7]} 37...
h3 {[%clk 0:00:21]} 38. Red2 {[%clk 0:00:04.9]} 38... Ne3 {[%clk 0:00:19.9]} 39.
Re1 {[%clk 0:00:04.1]} 39... Nc4 {[%clk 0:00:19.9]} 40. Rf2 {[%clk 0:00:04.3]}
40... Rg2 {[%clk 0:00:20]} 41. Rxg2 {[%clk 0:00:04.2]} 41... hxg2 {[%clk
0:00:20.9]} 42. Rg1 {[%clk 0:00:05]} 42... Nxe5 {[%clk 0:00:20.7]} 43. fxe5
{[%clk 0:00:05.1]} 43... Rg7 {[%clk 0:00:21.3]} 44. h4 {[%clk 0:00:05.4]} 44...
Kd7 {[%clk 0:00:18.9]} 45. h5 {[%clk 0:00:05.6]} 45... Ke6 {[%clk 0:00:19.2]}
46. h6 {[%clk 0:00:06.1]} 46... Rh7 {[%clk 0:00:19.7]} 47. Rxg2 {[%clk
0:00:06.6]} 47... Rxh6 {[%clk 0:00:18.7]} 48. Rg5 {[%clk 0:00:07.1]} 48... e3
{[%clk 0:00:18.1]} 49. Kc2 {[%clk 0:00:07.6]} 49... Rh2+ {[%clk 0:00:17.1]} 50.
Kd3 {[%clk 0:00:08.1]} 50... e2 {[%clk 0:00:16.9]} 51. Kd2 {[%clk 0:00:09]}
51... Rf2 {[%clk 0:00:14.9]} 52. Rg6+ {[%clk 0:00:09.2]} 52... Kxe5 {[%clk
0:00:15.1]} 53. Rxa6 {[%clk 0:00:10.1]} 53... Rh2 {[%clk 0:00:10.1]} 54. Ra8
{[%clk 0:00:10.2]} 54... Ke4 {[%clk 0:00:10]} 55. Re8+ {[%clk 0:00:10.8]} 55...
Kf3 {[%clk 0:00:10.3]} 56. Re3+ {[%clk 0:00:11.5]} 56... Kf4 {[%clk 0:00:09.4]}
57. Rxe2 {[%clk 0:00:12.2]} 57... Rh1 {[%clk 0:00:10.1]} 58. Kc2 {[%clk
0:00:11.9]} 58... Kf3 {[%clk 0:00:10.3]} 59. Re5 {[%clk 0:00:10.6]} 59... Rh2+
{[%clk 0:00:09.3]} 60. Kc1 {[%clk 0:00:11]} 60... Rh1+ {[%clk 0:00:09.6]} 61.
Kc2 {[%clk 0:00:11.6]} 61... Rh2+ {[%clk 0:00:10.2]} 62. Kb1 {[%clk 0:00:09.9]}
62... Rd2 {[%clk 0:00:10.3]} 63. Kc1 {[%clk 0:00:10]} 63... Re2 {[%clk
0:00:02.5]} 64. Rxd5 {[%clk 0:00:09.4]} 64... Ke4 {[%clk 0:00:03.3]} 65. Rxb5
{[%clk 0:00:09.4]} 65... Re1+ {[%clk 0:00:03.6]} 66. Kc2 {[%clk 0:00:09.4]}
66... Rh1 {[%clk 0:00:04.5]} 67. a4 {[%clk 0:00:09.6]} 67... Rh2+ {[%clk
0:00:05.1]} 68. Kb3 {[%clk 0:00:10.1]} 68... Kd3 {[%clk 0:00:05.8]} 69. Rd5+
{[%clk 0:00:10.3]} 69... Ke4 {[%clk 0:00:05.9]} 70. Rd4+ {[%clk 0:00:11.2]}
70... Ke5 {[%clk 0:00:06.3]} 71. a5 {[%clk 0:00:12.1]} 71... Rh6 {[%clk
0:00:05.6]} 72. Ka4 {[%clk 0:00:12]} 72... Rh8 {[%clk 0:00:06.1]} 73. b4 {[%clk
0:00:12.3]} 73... Rb8 {[%clk 0:00:06.8]} 74. a6 {[%clk 0:00:12.5]} 74... Rc8
{[%clk 0:00:07.6]} 75. Rd3 {[%clk 0:00:10.3]} 75... Ke4 {[%clk 0:00:06.8]} 76.
Rh3 {[%clk 0:00:10.5]} 76... Kd5 {[%clk 0:00:07.2]} 77. Rh5+ {[%clk 0:00:10.5]}
77... Kc4 {[%clk 0:00:07.7]} 78. Rc5+ {[%clk 0:00:11]} 78... Rxc5 {[%clk
0:00:08.1]} 79. bxc5 {[%clk 0:00:11.9]} 79... Kd5 {[%clk 0:00:08.8]} 80. a7
{[%clk 0:00:12.7]} 80... Kxc5 {[%clk 0:00:09.5]} 81. a8=Q {[%clk 0:00:13.6]}
81... Kc4 {[%clk 0:00:10.4]} 82. Qe4+ {[%clk 0:00:13.7]} 82... Kxc3 {[%clk
0:00:10.2]} 83. Kb5 {[%clk 0:00:14.2]} 83... Kd2 {[%clk 0:00:11.1]} 84. Qf3
{[%clk 0:00:14.3]} 84... Ke1 {[%clk 0:00:11.4]} 85. Qg2 {[%clk 0:00:14.7]} 85...
Kd1 {[%clk 0:00:11.8]} 86. Qf2 {[%clk 0:00:15.2]} 86... Kc1 {[%clk 0:00:12.7]}
87. Qe2 {[%clk 0:00:15.8]} 87... Kb1 {[%clk 0:00:13.4]} 88. Qd2 {[%clk
0:00:16.3]} 88... Ka1 {[%clk 0:00:14.3]} 89. Ka6 {[%clk 0:00:16.6]} 89... Kb1
{[%clk 0:00:15.2]} 90. Ka7 {[%clk 0:00:17.5]} 90... Ka1 {[%clk 0:00:16.1]} 91.
Ka8 {[%clk 0:00:18.4]} 91... Kb1 {[%clk 0:00:17]} 92. Kb8 {[%clk 0:00:19.3]}
92... Ka1 {[%clk 0:00:17.8]} 93. Kc8 {[%clk 0:00:20.2]} 93... Kb1 {[%clk
0:00:18.7]} 94. Kd8 {[%clk 0:00:21.1]} 94... Ka1 {[%clk 0:00:19.6]} 95. Ke8
{[%clk 0:00:22]} 95... Kb1 {[%clk 0:00:20.5]} 96. Kf8 {[%clk 0:00:22.9]} 96...
Ka1 {[%clk 0:00:21.4]} 97. Kg8 {[%clk 0:00:23.8]} 97... Kb1 {[%clk 0:00:22.3]}
98. Kh8 {[%clk 0:00:24.7]} 98... Ka1 {[%clk 0:00:23.2]} 99. Kg7 {[%clk
0:00:25.6]} 99... Kb1 {[%clk 0:00:24.1]} 100. Kf6 {[%clk 0:00:26.5]} 100... Ka1
{[%clk 0:00:25]} 101. Ke5 {[%clk 0:00:27.4]} 101... Kb1 {[%clk 0:00:25.9]} 102.
Kd4 {[%clk 0:00:28.3]} 102... Ka1 {[%clk 0:00:26.8]} 103. Kc3 {[%clk 0:00:29.2]}
103... Kb1 {[%clk 0:00:27.7]} 104. Qb2# {[%clk 0:00:30.1]} 1-0